bitfinex-derivatives/quotes_SOLF0:USTF0_20240830
["timestamp","ask_amount","ask_price","bid_price","bid_amount"]
[1725030799112,3.75557036,134.84,134.74,35.61]
[1725030799113,35.61,134.83,134.74,35.61]
[1725030799313,35.61,134.83,134.72,39.31557286]
[1725030799507,35.61,134.83,134.76,3.7101]
[1725030799909,35.66578131,134.81,134.78,0.05501334]
[1725030800111,2.5671,134.8,134.71,35.61]
[1725030800312,6.35855337,134.8,134.71,39.31428073]
[1725030800517,3.7092,134.79,134.71,39.31428073]
[1725030800712,2.5671,134.8,134.71,39.31428073]
[1725030801019,0.05266733,134.77,134.74,0.05438501]
[1725030801413,3.7103,134.76,134.74,0.05438501]
[1725030801912,7.47791273,134.76,134.74,0.05438501]
[1725030802115,3.7102,134.76,134.74,0.05438501]
[1725030802319,0.05266733,134.77,134.74,0.05438501]
[1725030803018,3.7103,134.76,134.74,0.05438501]
[1725030803710,3.7103,134.75,134.74,0.05438501]
[1725030803908,35.61,134.75,134.64,38.2997]
[1725030804118,35.61,134.73,134.64,38.1968]
[1725030804512,38.1408,134.72,134.62,35.61]
[1725030804708,2.5044,134.71,134.62,35.61]
[1725030804917,0.05328928,134.68,134.62,39.3997002]
[1725030805121,0.05328928,134.68,134.66,3.7127]
[1725030805721,0.05328928,134.68,134.67,3.7125]
[1725030805926,0.05328928,134.68,134.62,39.3997002]
[1725030807026,0.05328928,134.68,134.64,3.7132]
[1725030807518,0.05328928,134.68,134.65,3.7131]
[1725030808717,0.05328928,134.68,134.62,35.61]
[1725030808913,0.05328928,134.68,134.62,39.28483296]
[1725030809221,3.76568928,134.68,134.64,3.7132]
[1725030809524,0.05328928,134.68,134.62,3.67483296]
[1725030809823,3.7126,134.67,134.63,3.7135]
[1725030810021,35.66328928,134.68,134.58,35.61]
[1725030810219,0.04980974,134.64,134.58,39.26013365]
[1725030810420,0.04980974,134.64,134.58,3.65013365]
[1725030810614,0.04980974,134.64,134.55,35.61]
[1725030810819,0.05592777,134.61,134.55,35.61]
[1725030811018,0.05592777,134.61,134.58,3.715]
[1725030811424,0.05592777,134.61,134.55,39.30839619]
[1725030811728,0.05592777,134.61,134.59,35.61]
[1725030812233,0.05592777,134.61,134.6,3.7095337]
[1725030812522,0.05592777,134.61,134.58,35.61]
[1725030812824,0.05592777,134.61,134.58,39.29428868]
[1725030813325,0.05592777,134.61,134.6,3.7145]
[1725030813922,7.409,134.78,134.6,35.61]
[1725030814117,2.6279,134.73,134.64,35.61]
[1725030814317,2.6279,134.73,134.69,3.7118]
[1725030814521,2.6279,134.73,134.64,39.25008455]
[1725030814724,3.7114,134.72,134.64,39.25008455]
[1725030814929,0.05298562,134.69,134.67,0.05063822]
[1725030818025,3.7123,134.68,134.67,0.05063822]
[1725030818325,0.05298562,134.69,134.68,3.7123]
[1725030821735,35.61,134.78,134.67,35.66063822]
[1725030821924,41.031,134.78,134.69,35.61]
[1725030822130,3.7101,134.76,134.69,35.61]
[1725030822424,41.031,134.78,134.69,35.61]
[1725030822425,5.421,134.78,134.69,35.61]
[1725030822629,5.421,134.78,134.66,35.61]
[1725030822630,0.05178576,134.75,134.72,0.05372235]
[1725030822834,0.05178576,134.75,134.74,3.7106]
[1725030824635,39.34961116,134.82,134.73,39.33736717]
[1725030824827,35.61,134.8,134.68,35.61]
[1725030825225,35.61,134.8,134.7,35.61]
[1725030825426,0.05406909,134.76,134.74,0.04815056]
[1725030826433,0.05406909,134.76,134.75,7.3854537]
[1725030826933,2.7403,134.83,134.75,3.6751537]
[1725030827232,2.7403,134.83,134.73,35.61]
[1725030827233,2.7403,134.83,134.77,35.61]
[1725030827436,40.8708,134.88,134.79,35.61]
[1725030827837,9.9255,134.9,134.83,35.61]
[1725030827838,0.05592934,134.85,134.83,35.61]
[1725030828029,0.04921149,134.85,134.83,39.42964712]
[1725030828225,0.04921149,134.85,134.83,3.81964712]
[1725030829535,0.04921149,134.85,134.83,7.52764712]
[1725030830128,0.04921149,134.85,134.84,3.7079]
[1725030830840,0.04921149,134.85,134.83,7.52764712]
[1725030831633,0.04921149,134.85,134.83,3.81964712]
[1725030832533,0.04921149,134.85,134.83,7.52774712]
[1725030832735,0.04921149,134.85,134.83,3.81964712]
[1725030833642,0.04921149,134.85,134.83,0.05286498]
[1725030834333,0.04921149,134.85,134.75,35.61]
[1725030834539,3.7085,134.82,134.77,3.7096]
[1725030834742,35.61,134.82,134.73,39.28589563]
[1725030834938,6.34972542,134.81,134.71,35.61]
[1725030835138,3.7094,134.79,134.71,39.24592556]
[1725030835345,0.04900052,134.76,134.74,0.05058048]
[1725030835540,0.04690815,134.76,134.74,0.05058048]
[1725030836042,35.65690815,134.76,134.65,35.61]
[1725030836342,35.61,134.74,134.65,35.61]
[1725030836533,3.7113,134.72,134.67,3.7123]
[1725030836850,35.61,134.75,134.65,35.61]
[1725030837145,0.04952036,134.71,134.69,0.04963557]
[1725030837336,3.70737503,134.71,134.69,0.04963557]
[1725030837645,3.7117,134.7,134.69,0.04963557]
[1725030838137,3.83015862,134.71,134.69,0.04963557]
[1725030838341,3.7117,134.7,134.69,0.04963557]
[1725030838538,0.05131746,134.71,134.69,0.04963557]
[1725030840542,35.66131746,134.71,134.61,38.0754]
[1725030840739,3.7122,134.69,134.64,3.7132]
[1725030840944,2.6421,134.7,134.61,38.0754]
[1725030841148,45.6611,134.7,134.61,35.61]
[1725030841343,3.7125,134.68,134.63,3.7136]
[1725030841545,0.05547732,134.67,134.64,0.0548739]
[1725030841737,0.05547732,134.67,134.65,3.713]
[1725030842249,0.05547732,134.67,134.64,0.0548739]
[1725030842444,0.05547732,134.67,134.66,3.7128]
[1725030842645,0.05547732,134.67,134.64,0.0548739]
[1725030843041,3.713,134.66,134.64,0.0548739]
[1725030843745,3.7131,134.65,134.64,0.0548739]
[1725030844755,2.542,134.66,134.64,0.0548739]
[1725030844950,0.05547732,134.67,134.64,0.0548739]
[1725030845250,0.05547732,134.67,134.64,3.7680739]
[1725030846048,0.05547732,134.67,134.65,3.7129]
[1725030846350,0.05547732,134.67,134.64,0.0548739]
[1725030846851,0.05547732,134.67,134.66,3.7128]
[1725030847044,2.542,134.72,134.66,39.28704203]
[1725030847245,2.542,134.72,134.66,3.67704203]
[1725030847445,2.542,134.72,134.62,35.61]
[1725030848050,0.05263028,134.68,134.67,3.7124]
[1725030848253,0.05129675,134.69,134.66,0.05554146]
[1725030848949,0.05129675,134.69,134.67,3.7125]
[1725030849350,0.05129675,134.69,134.66,0.05554146]
[1725030849949,0.05129675,134.69,134.67,3.7125]
[1725030851055,0.05129675,134.69,134.66,0.05554146]
[1725030851952,0.05129675,134.69,134.68,3.7123]
[1725030852547,3.7108,134.74,134.7,3.7116]
[1725030853143,3.7108,134.74,134.7,3.6817878]
[1725030853355,3.7108,134.74,134.66,42.73]
[1725030853552,0.05296941,134.71,134.69,0.05398781]
[1725030853851,0.04760454,134.71,134.7,3.78090429]
[1725030854254,0.04760454,134.71,134.7,7.49260429]
[1725030854450,0.04760454,134.71,134.7,3.7117]
[1725030854851,0.04760454,134.71,134.69,0.05398781]
[1725030855147,3.7117,134.7,134.69,0.05398781]
[1725030855749,3.75920454,134.71,134.69,0.05398781]
[1725030855949,0.04760454,134.71,134.7,3.7117]
[1725030856159,0.04760454,134.71,134.69,0.05398781]
[1725030856448,0.04760454,134.71,134.69,3.76578781]
[1725030857054,0.04760454,134.71,134.69,0.05398781]
[1725030857447,3.7117,134.7,134.69,0.05398781]
[1725030860658,49.01004503,134.71,134.59,42.73]
[1725030860954,42.73,134.68,134.58,2.522]
[1725030861159,42.73,134.66,134.59,3.62678147]
[1725030861352,42.73,134.66,134.57,2.4233]
[1725030861660,0.05237733,134.63,134.6,0.04779297]
[1725030862355,3.7142,134.61,134.6,0.04779297]
[1725030863950,3.7141,134.62,134.6,0.04779297]
[1725030864559,3.76617733,134.63,134.6,0.04779297]
[1725030864952,0.05237733,134.63,134.6,0.04779297]
[1725030865763,0.05237733,134.63,134.61,3.714]
[1725030866153,0.05237733,134.63,134.6,0.04779297]
[1725030866359,0.05237733,134.63,134.62,3.7139]
[1725030866856,0.05237733,134.63,134.61,3.7141]
[1725030867058,0.05237733,134.63,134.6,0.04779297]
[1725030867564,0.05237733,134.63,134.61,3.7141]
[1725030867763,0.05237733,134.63,134.6,0.04779297]
[1725030867959,3.76607733,134.63,134.6,0.04779297]
[1725030868158,0.05237733,134.63,134.6,0.04779297]
[1725030868858,0.05237733,134.63,134.6,3.76209297]
[1725030869259,0.05237733,134.63,134.6,0.04779297]
[1725030869463,3.76607733,134.63,134.6,0.04779297]
[1725030870855,0.05237733,134.63,134.6,3.76219297]
[1725030871057,0.05237733,134.63,134.6,0.04779297]
[1725030871974,0.05237733,134.63,134.6,3.76219297]
[1725030872169,0.05237733,134.63,134.61,35.65]
[1725030872467,0.05237733,134.63,134.62,3.7139]
[1725030874259,0.05237733,134.63,134.61,3.7141]
[1725030874864,0.05237733,134.63,134.6,0.04779297]
[1725030875472,0.05237733,134.63,134.61,3.714]
[1725030876764,0.05237733,134.63,134.62,3.7139]
[1725030876968,0.05237733,134.63,134.6,3.77579475]
[1725030877269,0.05237733,134.63,134.62,3.7139]
[1725030879474,0.05237733,134.63,134.61,3.714]
[1725030880086,0.05237733,134.63,134.62,3.7139]
[1725030881373,2.5665,134.68,134.61,35.65]
[1725030881572,7.409,134.67,134.61,35.65]
[1725030881771,7.409,134.67,134.61,39.43990761]
[1725030882376,0.05029645,134.65,134.64,3.7132]
[1725030884570,7.409,134.7,134.64,35.65]
[1725030884781,35.65,134.78,134.68,35.65]
[1725030884978,3.63369718,134.81,134.62,2.4822]
[1725030884979,3.7094,134.79,134.7,35.65]
[1725030885179,43.2857,134.8,134.7,35.65]
[1725030885571,0.04844457,134.76,134.74,0.05525509]
[1725030886783,3.75854457,134.76,134.74,0.05525509]
[1725030887377,0.04844457,134.76,134.74,0.05525509]
[1725030888080,0.04844457,134.76,134.74,35.70525509]
[1725030888289,42.07994033,134.84,134.74,35.70525509]
[1725030888579,2.651,134.84,134.75,35.65]
[1725030888780,5.1028,134.85,134.77,35.65]
[1725030888974,5.1028,134.85,134.81,3.7086]
[1725030889180,5.1028,134.85,134.79,3.74777382]
[1725030889380,0.04690525,134.83,134.81,0.04753737]
[1725030891788,3.7084,134.82,134.81,0.04753737]
[1725030892187,0.04690525,134.83,134.81,0.04753737]
[1725030892391,3.75520525,134.83,134.81,0.04753737]
[1725030892590,0.04690525,134.83,134.81,0.04753737]
[1725030893479,35.65,134.82,134.71,40.7011]
[1725030893690,5.1028,134.85,134.73,35.65]
[1725030893988,40.7528,134.85,134.78,3.7094]
[1725030894286,40.7528,134.85,134.78,3.69686178]
[1725030894590,0.05639001,134.83,134.8,0.0492708]
[1725030894988,3.7084,134.82,134.8,0.0492708]
[1725030895289,0.05639001,134.83,134.8,0.0492708]
[1725030896291,3.76459001,134.83,134.8,0.0492708]
[1725030896794,0.05639001,134.83,134.8,0.0492708]
[1725030896992,0.05639001,134.83,134.8,3.7581708]
[1725030897292,0.05639001,134.83,134.8,0.0492708]
[1725030898189,0.05639001,134.83,134.81,3.7087]
[1725030899595,0.05639001,134.83,134.8,3.7581708]
[1725030900596,0.05639001,134.83,134.8,0.0492708]
[1725030900799,35.65,134.81,134.7,39.44982786]
[1725030901001,3.65490137,134.8,134.71,2.5688]
[1725030901295,35.65,134.81,134.7,39.44982786]
[1725030901491,2.6865,134.79,134.7,39.44982786]
[1725030901799,0.049164,134.76,134.73,3.76638207]
[1725030902597,0.049164,134.76,134.73,0.05568207]
[1725030902803,0.049164,134.76,134.74,35.65]
[1725030903003,0.049164,134.76,134.73,0.05568207]
[1725030903305,0.049164,134.76,134.74,3.7104]
[1725030903799,0.049164,134.76,134.75,3.7103]
[1725030904399,2.6838,134.83,134.75,35.65]
[1725030904697,2.6838,134.83,134.73,35.65]
[1725030904898,3.7094,134.79,134.75,3.7103]
[1725030905098,35.65,134.82,134.75,3.7103]
[1725030905397,0.05419625,134.8,134.77,0.05387273]
[1725030905591,0.05419625,134.8,134.77,3.84541575]
[1725030905996,0.05419625,134.8,134.79,3.7092]
[1725030906594,0.05419625,134.8,134.78,3.7094]
[1725030906791,0.05419625,134.8,134.77,3.84541575]
[1725030906999,3.7095,134.78,134.77,0.05387273]
[1725030907899,35.65,134.82,134.71,35.65]
[1725030908101,2.6838,134.83,134.73,35.65]
[1725030908501,2.6838,134.83,134.69,2.5302]
[1725030908502,2.6838,134.83,134.75,35.65]
[1725030908696,2.6838,134.83,134.75,39.407787]
[1725030908901,0.05661211,134.8,134.79,3.7092]
[1725030909402,0.05661211,134.8,134.79,42.97867493]
[1725030909607,2.6799,134.87,134.82,3.7081]
[1725030909797,2.6799,134.87,134.79,39.26947493]
[1725030909798,7.409,134.86,134.79,39.26947493]
[1725030910000,2.6799,134.87,134.81,35.65]
[1725030910202,2.6799,134.87,134.84,3.7079]
[1725030910503,2.6799,134.87,134.81,35.65]
[1725030910707,0.05378042,134.85,134.84,3.7076]
[1725030910906,0.05281428,134.86,134.84,35.65]
[1725030911107,2.6324,134.91,134.85,35.65]
[1725030911904,2.6324,134.91,134.86,3.7072]
[1725030912208,0.04982386,134.9,134.87,0.05186076]
[1725030912408,0.04982386,134.9,134.88,3.75407295]
[1725030912904,0.04982386,134.9,134.88,7.46077295]
[1725030913212,0.04982386,134.9,134.88,39.40407295]
[1725030913698,0.04982386,134.9,134.89,3.7065]
[1725030913898,0.04982386,134.9,134.88,3.75407295]
[1725030914506,0.04982386,134.9,134.87,0.05186076]
[1725030914703,0.04982386,134.9,134.89,3.7065]
[1725030914902,0.04982386,134.9,134.89,7.3999934]
[1725030915204,3.7042,134.98,134.89,39.3434934]
[1725030915402,5.2483,134.99,134.92,35.65]
[1725030915604,5.2483,134.99,134.89,3.6934934]
[1725030915605,5.2483,134.99,134.94,35.65]
[1725030916208,0.0534058,134.98,134.95,0.05471177]
[1725030916805,15.13707361,135.14,134.97,35.65]
[1725030917008,5.0057,135.07,135.0,35.65]
[1725030917212,41.90903703,135.13,135.02,35.65]
[1725030917510,35.65,135.11,135.0,39.33592592]
[1725030917806,0.05168001,135.07,135.04,0.05643577]
[1725030918211,3.702,135.06,135.04,0.05643577]
[1725030918505,3.702,135.06,134.94,35.65]
[1725030918506,3.70296296,135.06,134.94,35.65]
[1725030918712,38.1436,135.05,134.94,35.65]
[1725030919006,48.1654,135.05,134.94,39.31407407]
[1725030919515,5.1064,135.05,134.98,3.7039]
[1725030919709,0.04746053,135.01,134.98,0.05438409]
[1725030921610,35.69746053,135.01,134.9,2.5632]
[1725030921805,35.65,135.01,134.9,2.5632]
[1725030922203,3.7045,134.97,134.92,3.7055]
[1725030922602,35.65,134.95,134.93,0.04742636]
[1725030922802,35.65,134.95,134.83,3.7537037]
[1725030922803,35.65,134.95,134.83,39.4037037]
[1725030923009,7.409,134.91,134.81,2.6306]
[1725030923211,7.409,134.89,134.81,3.7086]
[1725030923411,35.65,134.9,134.81,3.66945637]
[1725030923619,35.65,134.9,134.73,35.65]
[1725030923908,0.0518397,134.86,134.84,0.04783108]
[1725030924109,39.4024,134.94,134.84,35.69848127]
[1725030924110,2.7524,134.94,134.84,35.69848127]
[1725030924313,2.7524,134.94,134.87,35.65]
[1725030924611,38.1748,135.0,134.89,35.65]
[1725030924915,3.7047,134.96,134.89,35.65]
[1725030925111,11.17095418,134.99,134.89,35.65]
[1725030925412,11.17095418,134.99,134.87,3.74527392]
[1725030925413,0.05298995,134.94,134.91,0.05147594]
[1725030925827,35.70298995,134.94,134.91,0.05147594]
[1725030926010,3.7057,134.92,134.91,0.05147594]
[1725030926320,2.5248,134.93,134.87,3.7068]
[1725030926508,3.7063,134.9,134.86,3.7071]
[1725030926705,2.5248,134.93,134.87,3.63444287]
[1725030927005,2.5248,134.93,134.85,35.65]
[1725030927205,2.5248,134.93,134.87,35.65]
[1725030927412,0.05638227,134.91,134.89,0.04709481]
[1725030927711,0.05638227,134.91,134.9,3.706]
[1725030927910,0.05638227,134.91,134.89,0.04709481]
[1725030928214,0.05638227,134.91,134.89,3.75349481]
[1725030928402,0.05638227,134.91,134.89,0.04709481]
[1725030929313,35.65,134.92,134.81,2.5853]
[1725030929619,35.65,134.9,134.75,2.6735]
[1725030929816,35.65,134.9,134.75,5.178]
[1725030929817,3.7071,134.87,134.75,5.178]
[1725030930314,0.04812944,134.85,134.82,0.05030134]
[1725030930708,0.04812944,134.85,134.82,35.70030134]
[1725030931013,0.04812944,134.85,134.83,3.7081]
[1725030931513,0.04812944,134.85,134.82,3.75860134]
[1725030932212,0.04812944,134.85,134.82,0.05030134]
[1725030932513,42.74812944,134.85,134.75,3.63509019]
[1725030932717,42.7,134.85,134.75,3.7103]
[1725030932908,42.7,134.81,134.69,2.5746]
[1725030933106,42.7,134.79,134.68,3.71722707]
[1725030933306,7.409,134.78,134.66,42.7]
[1725030933509,7.409,134.78,134.71,0.04855498]
[1725030933717,0.04914899,134.76,134.71,42.74855498]
[1725030933914,0.04914899,134.76,134.66,46.39573283]
[1725030933915,0.04914899,134.76,134.75,42.7]
[1725030934111,0.05088309,134.77,134.75,46.46623376]
[1725030934315,0.05215515,134.77,134.75,46.51413574]
[1725030934921,0.05215515,134.77,134.76,3.7101]
[1725030935117,5.1369,134.86,134.75,46.51413574]
[1725030935324,7.409,134.85,134.78,42.7]
[1725030935513,5.1369,134.86,134.78,3.7093]
[1725030935819,5.1369,134.86,134.77,3.79888682]
[1725030936028,0.0550726,134.83,134.8,0.04928399]
[1725030937528,0.0550726,134.83,134.81,42.7]
[1725030938622,0.0550726,134.83,134.8,0.04928399]
[1725030939019,0.0550726,134.83,134.81,3.7087]
[1725030939215,0.0550726,134.83,134.81,42.7]
[1725030939614,0.0550726,134.83,134.82,3.7084]
[1725030940226,7.409,134.89,134.81,42.7]
[1725030940623,7.409,134.87,134.81,42.7]
[1725030940831,7.409,134.87,134.79,42.7]
[1725030941122,7.409,134.87,134.77,2.5037]
[1725030941325,0.05287604,134.84,134.82,0.05254053]
[1725030941728,3.76087604,134.84,134.82,0.05254053]
[1725030942920,3.7081,134.83,134.78,3.7095]
[1725030943120,10.0951,134.83,134.73,42.7]
[1725030943327,12.5993,134.83,134.73,46.47900656]
[1725030943823,10.0951,134.83,134.73,46.47900656]
[1725030944123,9.9132,134.86,134.78,42.7]
[1725030944328,9.9132,134.86,134.81,0.05578273]
[1725030944520,3.7084,134.82,134.77,3.7096]
[1725030944824,0.05417127,134.83,134.78,0.05435208]
[1725030945025,3.75955446,134.82,134.78,0.05435208]
[1725030946024,0.05095446,134.82,134.78,0.05435208]
[1725030947125,7.409,134.8,134.78,0.05435208]
[1725030947329,0.05095446,134.82,134.78,0.05435208]
[1725030947532,0.05095446,134.82,134.78,42.75435208]
[1725030947729,0.05095446,134.82,134.81,3.7087]
[1725030947927,0.05095446,134.82,134.81,7.46333581]
[1725030948238,0.05095446,134.82,134.78,42.75435208]
[1725030948239,0.05095446,134.82,134.78,0.05435208]
[1725030948421,7.409,134.83,134.67,3.60421068]
[1725030948622,7.409,134.83,134.73,42.7]
[1725030948825,11.1175,134.82,134.76,3.7101]
[1725030949330,11.1175,134.82,134.73,46.34003856]
[1725030949331,3.75592996,134.8,134.78,0.04741576]
[1725030949640,7.45592996,134.8,134.78,0.04741576]
[1725030949828,3.7092,134.79,134.78,0.04741576]
[1725030950031,0.04692996,134.8,134.78,0.04741576]
[1725030951523,7.409,134.78,134.67,2.6237]
[1725030951831,7.409,134.78,134.53,61.282]
[1725030951832,7.409,134.76,134.65,42.7]
[1725030952030,3.7108,134.74,134.65,42.7]
[1725030952225,7.409,134.76,134.65,42.7]
[1725030952428,7.409,134.76,134.69,0.051025]
[1725030952631,0.05261699,134.72,134.69,3.762925]
[1725030952826,0.05261699,134.72,134.69,0.051025]
[1725030954033,3.76381699,134.72,134.69,0.051025]
[1725030954635,0.05261699,134.72,134.69,0.051025]
[1725030955135,0.05261699,134.72,134.53,7.4326]
[1725030955136,7.409,134.7,134.53,7.4326]
[1725030955331,7.409,134.7,134.58,42.7]
[1725030955643,7.409,134.68,134.62,3.7137]
[1725030955830,11.1217,134.67,134.58,46.36325718]
[1725030956036,7.409,134.67,134.58,46.36325718]
[1725030956342,0.05403154,134.64,134.61,0.02338161]
[1725030957228,0.05403154,134.64,134.61,3.73748161]
[1725030957834,0.05403154,134.64,134.63,3.7136]
[1725030958637,7.409,134.69,134.68,3.7123]
[1725030958845,7.409,134.72,134.68,3.7123]
[1725030959437,45.3208,134.73,134.63,2.6926]
[1725030959644,0.04690637,134.69,134.67,0.04681335]
[1725030960241,0.04690637,134.69,134.67,3.75911335]
[1725030960439,0.04690637,134.69,134.67,0.04681335]
[1725030962241,0.04690637,134.69,134.6,3.63761971]
[1725030962442,35.63,134.67,134.57,35.63]
[1725030962739,35.63,134.65,134.55,35.63]
[1725030962936,35.63,134.65,134.54,5.2242]
[1725030962937,35.63,134.63,134.54,2.6626]
[1725030963244,0.04967534,134.6,134.57,0.0305998]
[1725030963741,0.04967534,134.6,134.57,35.6605998]
[1725030964241,0.04967534,134.6,134.57,3.65968224]
[1725030964644,0.04967534,134.6,134.57,0.0305998]
[1725030966239,3.7148,134.59,134.57,0.0305998]
[1725030966643,3.7148,134.59,134.55,3.68141963]
[1725030966644,10.1321,134.59,134.55,3.68141963]
[1725030966839,13.8469,134.59,134.54,3.716]
[1725030967045,10.1321,134.59,134.55,3.66206596]
[1725030967245,10.1321,134.59,134.48,45.4574]
[1725030967746,0.05263176,134.55,134.48,45.4574]
[1725030968149,7.46163176,134.55,134.48,2.6774]
[1725030968344,7.409,134.53,134.46,3.68921452]
[1725030968542,0.05123878,134.51,134.44,42.78]
[1725030968738,0.05123878,134.51,134.44,46.49220581]
[1725030968943,2.7231,134.59,134.49,42.78]
[1725030969238,42.78,134.64,134.53,42.78]
[1725030969439,42.78,134.62,134.51,42.78]
[1725030969644,42.78,134.6,134.47,42.8725]
[1725030969842,0.05188995,134.55,134.52,0.05123878]
[1725030970041,0.05188995,134.55,134.54,3.7161]
[1725030970541,7.409,134.61,134.51,42.78]
[1725030970739,50.189,134.61,134.51,42.78]
[1725030971046,42.78,134.59,134.49,42.78]
[1725030971543,53.9033,134.61,134.53,0.05678527]
[1725030971734,0.05044175,134.58,134.53,0.05678527]
[1725030971938,0.05044175,134.58,134.56,3.7154]
[1725030972137,0.05044175,134.58,134.53,0.05678527]
[1725030972545,0.05044175,134.58,134.56,3.7154]
[1725030973047,0.05044175,134.58,134.55,3.63012502]
[1725030973344,0.05044175,134.58,134.57,3.7153]
[1725030973548,0.05044175,134.58,134.56,0.05169513]
[1725030973747,0.05044175,134.58,134.56,0.04712147]
[1725030974444,7.409,134.69,134.56,42.82712147]
[1725030974651,12.7295,134.69,134.6,42.78]
[1725030974843,16.4415,134.69,134.6,42.78]
[1725030975047,12.7295,134.69,134.6,46.50186238]
[1725030975447,0.05236106,134.66,134.65,3.7129]
[1725030975745,0.05236106,134.66,134.63,0.05011012]
[1725030976646,0.05236106,134.66,134.65,3.7131]
[1725030976848,0.05236106,134.66,134.63,0.05011012]
[1725030977342,0.05236106,134.66,134.63,3.76351012]
[1725030977544,0.05236106,134.66,134.63,0.05011012]
[1725030977850,7.409,134.64,134.52,42.78]
[1725030978045,42.78,134.67,134.52,42.78]
[1725030978046,50.189,134.63,134.52,42.78]
[1725030978246,9.9192,134.62,134.52,42.78]
[1725030978544,9.9192,134.62,134.54,42.78]
[1725030978748,9.9192,134.62,134.57,0.0539608]
[1725030978749,0.05627839,134.59,134.57,0.0539608]
[1725030978951,0.05627839,134.59,134.58,3.7149]
[1725030979543,7.409,134.66,134.57,42.78]
[1725030979740,2.5102,134.67,134.58,45.3613]
[1725030980150,42.78,134.71,134.58,2.5813]
[1725030980353,2.6874,134.7,134.59,42.78]
[1725030980550,0.05554401,134.66,134.63,0.053173]
[1725030981046,0.05554401,134.66,134.63,3.766673]
[1725030981451,7.46454401,134.66,134.63,0.053173]
[1725030981650,6.33453309,134.7,134.55,2.5693]
[1725030981651,42.78,134.65,134.55,2.5693]
[1725030982054,3.7135,134.64,134.55,45.3493]
[1725030982347,42.78,134.67,134.55,2.5693]
[1725030982546,42.78,134.65,134.55,2.5693]
[1725030982753,3.76529853,134.61,134.59,0.0558118]
[1725030983350,0.05079853,134.61,134.59,0.0558118]
[1725030983753,0.05079853,134.61,134.25,101.01280685]
[1725030983754,50.189,134.6,134.34,11.1647]
[1725030984050,53.86574366,134.6,134.47,42.78]
[1725030984251,42.78,134.52,134.4,42.78]
[1725030984550,42.78,134.5,134.38,42.78]
[1725030984753,0.04738055,134.45,134.43,0.05075395]
[1725030984958,3.77244298,134.45,134.43,0.05075395]
[1725030985255,0.05364298,134.45,134.43,0.05075395]
[1725030985754,42.83364298,134.45,134.43,0.05075395]
[1725030985944,50.24264298,134.45,134.43,0.05075395]
[1725030986150,42.83364298,134.45,134.43,0.05075395]
[1725030986744,0.05364298,134.45,134.43,0.05075395]
[1725030987746,0.05364298,134.45,134.44,3.7189]
[1725030987947,0.05364298,134.45,134.43,0.05075395]
[1725030988350,42.83364298,134.45,134.43,0.05075395]
[1725030988955,42.78,134.45,134.38,3.69115787]
[1725030989151,42.78,134.43,134.34,2.5397]
[1725030989352,42.78,134.43,134.41,3.7196]
[1725030989748,42.78,134.45,134.38,3.67851565]
[1725030989955,42.78,134.45,134.34,2.5397]
[1725030990161,0.05120949,134.43,134.34,2.5397]
[1725030990357,0.05228168,134.4,134.39,3.7203]
[1725030990554,0.05715798,134.41,134.35,42.78]
[1725030990763,0.05715798,134.41,134.4,3.72]
[1725030991254,0.05715798,134.41,134.34,6.21115088]
[1725030991851,0.05715798,134.41,134.4,3.72]
[1725030992051,42.78,134.49,134.37,42.78]
[1725030992255,7.442,134.48,134.37,42.78]
[1725030992463,3.7182,134.47,134.37,42.78]
[1725030992659,42.78,134.47,134.35,42.78]
[1725030992856,46.4987,134.45,134.34,6.21115088]
[1725030993061,0.0537516,134.41,134.38,0.05328679]
[1725030993963,0.0537516,134.41,134.4,3.72]
[1725030994458,0.0537516,134.41,134.38,0.05328679]
[1725030995462,0.0537516,134.41,134.4,3.72]
[1725030997063,0.0537516,134.41,134.39,3.7202]
[1725030997261,0.0537516,134.41,134.38,0.05328679]
[1725030997755,0.0537516,134.41,134.39,3.7201]
[1725030998266,0.0537516,134.41,134.38,0.05328679]